Cogmind - Beta 10.2 @@@ ROGUE MODE // 2021.02.13 @ 03:12:02 Player: Chloroform Result: Destroyed by G-34 Mercenary with Small Laser Performance ------------- Evolutions (1) 500 Regions Visited (2) 400 Robots Destroyed (9) 45 Value Destroyed (247) 247 Prototype IDs (2) 40 Alien Tech Used (0) 0 Bonus (0) 0 TOTAL SCORE: 1232 Bonus ------- None Cogmind --------- Core Integrity 0/400 Matter 300/300 Energy 67/100 System Corruption 5% Temperature Cool (249) Movement Core (50) Location -9/Materials Parts ------- > --- POWER (1) -------- (None) > --- PROPULSION (3) --- (None) > --- UTILITY (3) ------ (None) > --- WEAPON (2) ------- (None) > --- INVENTORY (4) ---- Ion Engine Ion Engine Light Treads Aluminum Leg Peak State ------------ > --- POWER ------------ Ion Engine > --- PROPULSION ------- Light Treads Light Treads Aluminum Leg > --- UTILITY ---------- Small Storage Unit Small Storage Unit > --- WEAPON ----------- Light Assault Rifle Light Assault Rifle > --- INVENTORY -------- Ion Engine Ion Engine Aluminum Leg Aluminum Leg Aluminum Leg Medium Laser [Rating: 8] Favorites ----------- Power Ion Engine Engine Ion Engine Propulsion Light Treads Treads Light Treads Leg Aluminum Leg Utility Small Storage Unit Storage Small Storage Unit Weapon Light Assault Rifle Energy Gun Medium Laser Energy Cannon Particle Cannon Ballistic Gun Light Assault Rifle Build | -11 -10 -9 ------- Run | Scr Mat Mat Slots Evolved 2 | . . 2 Power . | . . . Propulsion 1 | . . 1 Utility 1 | . . 1 Weapon . | . . . Parts Attached 13 | 6 2 5 Power 1 | 1 . . Engine 1 | 1 . . Core . | . . . Reactor . | . . . Propulsion 5 | 2 . 3 Treads 2 | 2 . . Leg 3 | . . 3 Wheel . | . . . Hover . | . . . Flight . | . . . Utility 3 | 1 2 . Device . | . . . Storage 3 | 1 2 . Processor . | . . . Hackware . | . . . Protection . | . . . Artifact . | . . . Weapon 4 | 2 . 2 Energy Gun 1 | . . 1 Energy Cannon 1 | . . 1 Ballistic Gun 2 | 2 . . Ballistic Cannon . | . . . Launcher . | . . . Special Weapon . | . . . Impact Weapon . | . . . Slashing Weapon . | . . . Piercing Weapon . | . . . Special Melee Weapon . | . . . Unidentified Prototypes . | . . . Parts Lost 10 | . . 10 Power 1 | . . 1 Propulsion 3 | . . 3 Utility 2 | . . 2 Weapon 4 | . . 4 Highest Loss Streak 10 | . . 10 Average Slot Usage (%) 87 | . 96 77 Engine 11 | . 14 9 Treads 14 | . 28 . Leg 13 | . . 28 Storage 22 | . 24 21 Ballistic Gun 21 | . 28 15 Naked Turns 6 | . . 6 Heaviest Build 15 | 11 15 15 Greatest Support 40 | 40 40 30 Greatest Overweight (x) 1 | 1 . . Average Overweight (x) . | . . . Largest Inventory Capacity 8 | 6 8 8 Average Capacity 6 | 5 6 7 Most Carried 7 | 6 7 7 Average Carried 5 | 3 6 6 Final Capacity 8 | 6 8 4 Final Carried 7 | 6 7 4 Class Distribution -------------------- 100% | Mutant Dominant Class ---------------- Mutant | -10/Materials Mutant | -9/Materials Resources | -11 -10 -9 ----------- Run | Scr Mat Mat Matter Collected 337 | 199 76 62 Remotely . | . . . Salvage Created 309 | . 128 181 Parts 15 | . 10 5 Haulers Intercepted . | . . . Recyclers Shooed . | . . . Parts Field Recycled . | . . . Retrieved Matter . | . . . Parts Self-Destructed . | . . . Prevented . | . . . Kills | -11 -10 -9 ------- Run | Scr Mat Mat Combat Hostiles Destroyed 9 | . 5 4 Guns 7 | . 5 2 Cannons 2 | . . 2 Classes Destroyed 4 | . 2 2 Swarmer 3 | . 3 . Grunt 4 | . 2 2 Brawler 1 | . . 1 Sentry 1 | . . 1 Best Kill Streak 4 | . 4 2 Combat Bots Only 4 | . 4 2 Max Kills in Single Turn 1 | . 1 1 Gunslinging . | . . . Exploded . | . . . Melee . | . . . Uniques/NPCs Destroyed . | . . . Combat | -11 -10 -9 -------- Run | Scr Mat Mat Damage Taken 1498 | . 268 1230 Core 454 | . 53 401 Absorbed by Shields . | . . . Core Remaining (%) 89 | 100 78 . Volleys Fired 52 | 1 17 34 Largest 2 | 1 2 2 Hottest 70 | 20 40 70 Shots Fired 82 | 1 34 47 Gun 67 | 1 34 32 Cannon 15 | . . 15 Launcher . | . . . Special . | . . . Kinetic 57 | 1 34 22 Thermal 25 | . . 25 Explosive . | . . . Electromagnetic . | . . . Robot Hit Streak 9 | 1 8 9 Robot Miss Streak 3 | . 3 2 Penetration Max . | . . . Secondary Targets 1 | . 1 . Max Gunslinging Chain 1 | . 1 . Shots Hit Robots 59 | 1 22 36 Core Hits 25 | . 10 15 Critical Hits 1 | . 1 . Critical Kills 1 | . 1 . Critical Parts Destroyed . | . . . Melee Attacks . | . . . Impact . | . . . Slashing . | . . . Piercing . | . . . Sneak Attacks . | . . . Combat Hostiles . | . . . Follow-up Attacks . | . . . Damage Inflicted 684 | 8 179 497 Guns 400 | 8 179 213 Cannons 266 | . . 266 Explosions . | . . . Melee . | . . . Ramming 18 | . . 18 Kinetic 298 | 8 179 111 Thermal 368 | . . 368 Explosive . | . . . Electromagnetic . | . . . Impact . | . . . Slashing . | . . . Piercing . | . . . Highest Corruption 3 | . . 3 Average Corruption 3 | . . 3 Corruption Purged . | . . . Effects 1 | . . 1 Matter Fused 1 | . . 1 Overload Shots . | . . . Overflow Damage . | . . . Projectiles . | . . . Explosions . | . . . Melee . | . . . Knockbacks . | . . . Impact . | . . . Kinetic . | . . . Secondary . | . . . Self-Inflicted Damage 7 | . . 7 Shots . | . . . Rammed 7 | . . 7 Targets Rammed 7 | . . 7 Kicked . | . . . Crushed . | . . . Highest Temperature 395 | . 18 395 Average Temperature 111 | . 8 137 Received Heat Transfer 558 | . 102 456 Effects 2 | . . 2 Damage (minor) 2 | . . 2 Siege Activations . | . . . Robots Corrupted . | . . . Combat Hostiles . | . . . Parts Fried . | . . . Impact Corruptions . | . . . Robots Melted . | . . . Combat Hostiles . | . . . Parts Melted 1 | . . 1 Heat Transferred 777 | . . 777 Parts Sabotaged . | . . . Parts Stolen . | . . . Parts Stripped . | . . . Power Chain Reactions . | . . . Missiles Intercepted . | . . . Alert | -11 -10 -9 ------- Run | Scr Mat Mat Peak Influence 170 | . 170 141 Initial 71 | . . 71 Average 49 | . 31 94 Maximum Alert Level . | . . . Low Security (%) 100 | 100 100 100 Level 1 . | . . . Level 2 . | . . . Level 3 . | . . . Level 4 . | . . . Level 5 . | . . . High Security . | . . . Max Security . | . . . Squads Dispatched 4 | . 3 1 Investigation 1 | . 1 . Extermination . | . . . Reinforcement 3 | . 2 1 Assault . | . . . Garrison . | . . . Intercept . | . . . Construction Impeded . | . . . Haulers Reinforced . | . . . Stealth | -11 -10 -9 --------- Run | Scr Mat Mat Distress Signals 1 | . 1 . Communications Jammed . | . . . Distress Signals . | . . . Times Spotted 21 | . 12 9 Peak Tracking Total 7 | . 7 6 Tactical Retreats 2 | . 2 . Traps | -11 -10 -9 ------- Run | Scr Mat Mat Traps Triggered 1 | . 1 . Indirectly . | . . . Trap Hack Attempts . | . . . Triggered . | . . . Disarmed . | . . . Reprogrammed . | . . . Reused . | . . . Traps Extracted . | . . . Installed . | . . . Triggered . | . . . Machines | -11 -10 -9 ---------- Run | Scr Mat Mat Machines Disabled . | . . . Max in Single Turn . | . . . Machines Sabotaged . | . . . Garrisons Compromised . | . . . Overloaded Fab Kills . | . . . Fab Network Shutdowns . | . . . Hacking | -11 -10 -9 --------- Run | Scr Mat Mat Machines Accessed 1 | . 1 . Terminals 1 | . 1 . Fabricators . | . . . Repair Stations . | . . . Recycling Units . | . . . Scanalyzers . | . . . Garrison Access . | . . . Total Hacks 2 | . 2 . Successful 1 | . 1 . Failed 1 | . 1 . Catastrophic . | . . . Database Lockouts . | . . . Manual . | . . . Terminals 2 | . 2 . Fabricators . | . . . Repair Stations . | . . . Recycling Units . | . . . Scanalyzers . | . . . Garrison Access . | . . . Terminal Hacks 1 | . 1 . Prototype ID Bank 1 | . 1 . Fabricator Hacks . | . . . Repair Station Hacks . | . . . Recycling Unit Hacks . | . . . Scanalyzer . | . . . Garrison Access Hacks . | . . . Unauthorized Hacks . | . . . Terminals . | . . . Fabricators . | . . . Repair Stations . | . . . Recycling Units . | . . . Scanalyzers . | . . . Garrison Access . | . . . Data Cores Recovered . | . . . Used . | . . . Hacking Detections 1 | . 1 . Full Trace Events . | . . . Feedback Events . | . . . Feedback Blocked . | . . . Robot Schematics Acquired . | . . . Robots Built . | . . . Matter . | . . . Time . | . . . Total Robot Build Rating . | . . . Part Schematics Acquired . | . . . Parts Built . | . . . Matter . | . . . Time . | . . . Total Part Build Rating . | . . . Parts Repaired . | . . . Time . | . . . Parts Recycled . | . . . Recycled Matter . | . . . Retrieved Matter . | . . . Retrieved Components . | . . . Parts Scanalyzed . | . . . Part Schematics Acquired . | . . . Parts Damaged . | . . . Bothacking | -11 -10 -9 ------------ Run | Scr Mat Mat Used RIF Installer . | . . . Robots Hacked . | . . . Non-combat . | . . . Combat . | . . . Robot Hacks Applied . | . . . Relay Couplers Released . | . . . Robots Rewired . | . . . Allies Hacked . | . . . Hacks Repelled . | . . . Allies | -11 -10 -9 -------- Run | Scr Mat Mat Total Allies . | . . . Largest Group . | . . . Highest-Rated Group . | . . . Highest-Rated Ally . | . . . Total Orders . | . . . Ally Attacks . | . . . Total Damage . | . . . Kills . | . . . Allies Corrupted . | . . . Allies Melted . | . . . Intel | -11 -10 -9 ------- Run | Scr Mat Mat Robot Analysis Total . | . . . Derelict Logs Recovered . | . . . Drone Launches . | . . . Drone Recoveries . | . . . Exploration | -11 -10 -9 ------------- Run | Scr Mat Mat Turns Passed 583 | 111 247 225 Spaces Moved 297 | 61 123 113 Core 6 | 3 . 3 Treads 181 | 58 123 . Legs 110 | . . 110 Wheels . | . . . Hover . | . . . Flight . | . . . Fastest Speed 50 | 50 160 50 Average Speed 143 | 155 160 118 Slowest Speed 160 | 160 160 120 Overloaded Moves . | . . . Propulsion Burnouts . | . . . Robots Hopped . | . . . Cave-ins Triggered . | . . . Exploration Rate (%) 16 | 6 28 16 Regions Visited 2 Branch Regions . Pre-discovered Areas . | . . . Known Exits Taken . | . . . Unknown Exits Taken 2 | 1 1 . Scrap Searched . | . . . Spaces Dug . | . . . Terrain Destroyed . | . . . Melee . | . . . Projectile . | . . . AOE . | . . . Terrain Rammed . | . . . Walls Destroyed . | . . . Machines Disabled . | . . . Actions | -11 -10 -9 --------- Run | Scr Mat Mat Total 382 | 74 147 161 Wait . | . . . Move 295 | 60 122 113 Hop . | . . . Pick Up 12 | 7 3 2 Fast Attach 7 | 5 2 . Attach 4 | 1 . 3 Detach . | . . . Swap 2 | . . 2 Drop 3 | . 3 . Fire 52 | 1 17 34 Melee . | . . . Ram 7 | . . 7 Kick . | . . . Crush . | . . . Escape Stasis . | . . . Rewire . | . . . Trap . | . . . Miscellaneous . | . . . Route ------- -11/Scrapyard -10/Materials -9/Materials History --------- Turn | Location | Event 67 | -11/Scrapyard | Discovered new exit (range 16) 112 | -11/Scrapyard | Entered Materials 301 | -10/Materials | Build established: Mutant 338 | -10/Materials | Discovered new exit (range 4) 359 | -10/Materials | Entered another Materials area 359 | -9/Materials | Evolved 2 slots: Propulsion x1, Utility x1 576 | -9/Materials | Core integrity fell below 50% 582 | -9/Materials | Core integrity fell below 20% 584 | -9/Materials | Destroyed by G-34 Mercenary with Small Laser Last Messages --------------- 00548_ Aluminum Leg destroyed. 00554_ B-36 Bruiser heat damages Hammer. 00554_ B-36 Bruiser overheating. 00556_ Rnf. Ion Engine melted. 00556_ B-36 Bruiser destroyed. 00558_ System corrupted: Matter fused (-7). 00562_ Aluminum Leg destroyed. 00562_ G-34 Mercenary destroyed. 00562_ Aluminum Leg destroyed. 00571_ Overheating: Sml. Storage Unit damaged (-14). 00571_ Sml. Storage Unit destroyed. 00573_ Overheating: Particle Cannon damaged (-1). 00574_ Particle Cannon destroyed. 00576_ Slammed into L-31 Rogue. 00578_ Sml. Storage Unit destroyed. 00578_ Acquired 4 matter. 00579_ Slammed into G-34 Mercenary. 00582_ Slammed into L-31 Rogue. 00584_ Slammed into G-34 Mercenary. 00584_ Destabilizing: System corrupted (+2). Map ----- +----------------------------------------------------+ | ???????????????????????# #??# #??????? | | ???????????????????????# #??# #??????? | | ???????????????????????# #??# #??????? | | ???????????????????????# #??# #??????? | | ???????????????????????# #??# #??????? | | ??????????????????????? ??# #??????? | | ??????????????????????? ??# #??????? | | ??????????????????????? #?# #??????? | | ?????????????????????? #?# #??????? | | ????????????? ???????# #?# #??????? | | ????????????? ?????#####+##### #??????? | | ????????????? ?????# + #??????? | | ????????????? ?????# !! ## ##??????? | | ????????????? ?????# !! ## #???????? | | ????????????? ?????# !! """ ## #???????? | | ????????????? ?????# """ ## #???????? | | ????????????? #????# """ ## #????? #? | | ?????????????# #????# ## ## #? | | ?????????????# #????# + #? | | ?????????????# #????####+########## #? | | ?????????????# ######### #?????????? #? | | ?????????????# ## # #??????????? #?? | | ????????????## ## # ###########???#?? | | ?????????#### #!% ! # + #?????? | | ?????????+ %/gg= # ## #?????? | | ?????????#### = #@=%==!# ## #?????? | | ????????????## ##gl% # ## #?????? | | ?????????????#!######### ## +?????? | | ?????# ####### ######### ## #?????? | | ?????# %= ## #?????? | | ?????# ## #?????? | | ?????+ ## #?????? | | ?????# #?#########?????? | | ?????# #???????????????? | | ?????# ################# #???????????????? | | ?????#?????????????????# #???????????????? | | ???????????????????????# #???????????????? | | ???????????????????????# #???????????????? | | ???????????????????????? ???????????????? | | ???????????????????????? #???????????????? | | ???????????????????????? #???????????????? | | ???????????????????????? #???????????????? | | ???????????????????????? ????????????????? | | ???????????????????????? ????????????????? | | ???????????????????????? ????????????????? | | ?????????????????????????????????????????? | | ?????????????????????????????????????????? | | ?????????????????????????????????????????? | | ?????????????????????????????????????????? | | ?????????????????????????????????????????? | +----------------------------------------------------+ Best States ------------- Heat Dissipation 28 Energy Generation 10 Energy Capacity 250 Matter Stores 300 Matter Capacity 400 Sight Range 16 Terrain Scan Density 10 Evasion (%) 40 Recoil Reduction 2 Item Schematics ----------------- None Robot Schematics ------------------ None Fabricated ------------ Nothing Alien Tech Used ----------------- None Achievements -------------- None Challenges ------------ None Game ------ Seed ScanNeutrinoSegregator Manual? 0 Play Time 00:09:00 Cumulative 3.3 hours Start 2021.02.13 @ 03:05:43 End 2021.02.13 @ 03:12:02 Sessions 1 Manual Loads 0 Difficulty Rogue Special Mode None Game No. 6 Rogue 6 Adventurer 0 Explorer 0 Win Type - Total 0 Types 0/0/0/0/0/0/0/0/0 Lore% 3 Gallery% 9 Achievement% 10 Wizard Run 0 Options --------- ASCII 0 Keyboard 1 Movement Arrows Keybinds 0 Fullscreen 2 Font 18/SmallcapsGlow Map View 76x50 Tactical HUD 1 Map Filters NONE Filters NONE Steam 0 RUN: 8822737d-bcba-4b70-8f2f-e506021e0f37